fUSD/lending_fUSD_20250804
["ID","MTS","AMOUNT","RATE_DAILY","PERIOD"]
[377301689,1754326240169,-19186.21083129,0.0004592,15]
[377301690,1754326240181,-673.92303232,0.00046,120]
[377301691,1754326240191,-799.75991765,0.00046,120]
[377301692,1754326240201,-1000.0,0.00046,30]
[377301693,1754326240212,-1000.0,0.00046,120]
[377301694,1754326240221,-780.59,0.00046,120]
[377301695,1754326240232,-780.59,0.00046,120]
[377301696,1754326240242,-662.51,0.00046,120]
[377301697,1754326240252,-662.51,0.00046,120]
[377301698,1754326240261,-747.8,0.00046113,120]
[377301699,1754326240270,-151.0,0.00046174,2]
[377301700,1754326240280,-151.0,0.000462,120]
[377301701,1754326240289,-16548.4305564,0.00046359,3]
[377301702,1754326240299,-384.67,0.00046369,120]
[377301703,1754326240308,-239.13,0.00046369,2]
[377301704,1754326240317,-164.94,0.00046386,120]
[377301705,1754326240327,-513.56151364,0.000464,120]
[377301706,1754326240337,-755.15705471,0.000464,120]
[377301707,1754326240346,-151.0,0.000464,120]
[377301708,1754326240356,-1066.46050271,0.00046493,2]
[377301709,1754326240366,-672.41,0.00046509,120]
[377301710,1754326240375,-500.0,0.00046575,15]
[377301711,1754326240386,-500.0,0.00046575,15]
[377301712,1754326240396,-500.0,0.00046575,15]
[377301713,1754326240406,-645.86,0.00046575,15]
[377301714,1754326240415,-164.61508904,0.00046593,2]
[377301715,1754326240425,-416.03518578,0.00046593,2]
[377301716,1754326240434,-500.0,0.00046593,2]
[377301717,1754326240444,-500.0,0.00046593,2]
[377301718,1754326240453,-500.0,0.00046593,2]
[377301719,1754326240464,-500.0,0.00046593,2]
[377301720,1754326240474,-500.0,0.00046593,2]
[377301721,1754326240484,-500.0,0.00046593,2]
[377301722,1754326240494,-500.0,0.00046593,2]
[377301723,1754326240503,-500.0,0.00046593,2]
[377301724,1754326240513,-500.0,0.00046593,2]
[377301725,1754326240524,-500.0,0.00046593,2]
[377301726,1754326240533,-500.0,0.00046593,2]
[377301727,1754326240543,-500.0,0.00046593,2]
[377301728,1754326240552,-500.0,0.00046593,2]
[377301729,1754326240562,-500.0,0.00046593,2]
[377301730,1754326240571,-500.0,0.00046593,2]
[377301731,1754326240581,-500.0,0.00046593,2]
[377301732,1754326240591,-5391.81600769,0.00046593,2]
[377301734,1754326240601,-500.0,0.00046593,2]
[377301736,1754326240611,-500.0,0.00046593,2]
[377301737,1754326240828,-500.0,0.00046593,2]
[377301738,1754326240838,-500.0,0.00046593,2]
[377301739,1754326240848,-500.0,0.00046593,2]
[377301740,1754326240857,-500.0,0.00046593,2]
[377301741,1754326240867,-500.0,0.00046593,2]
[377301742,1754326240877,-500.0,0.00046593,2]
[377301743,1754326240886,-500.0,0.00046593,2]
[377301744,1754326240896,-500.0,0.00046593,2]
[377301745,1754326240906,-199.5,0.00046593,2]
[377301746,1754326240915,-500.0,0.00046593,2]
[377301747,1754326240925,-500.0,0.00046593,2]
[377301748,1754326240935,-500.0,0.00046593,2]
[377301749,1754326240944,-500.0,0.00046593,2]
[377301750,1754326240954,-500.0,0.00046593,2]
[377301751,1754326240963,-500.0,0.00046593,2]
[377301752,1754326240972,-500.0,0.00046593,2]
[377301753,1754326240982,-277.35679052,0.00046593,2]
[377301754,1754326240991,-151.0,0.00046593,2]
[377301755,1754326241001,-151.0,0.00046593,2]
[377301756,1754326241012,-202.30689021,0.00046593,2]
[377301757,1754326241021,-2000.0,0.000466,2]
[377301758,1754326241031,-415.58194351,0.00046602,120]
[377301759,1754326241040,-16548.4305564,0.00046638,3]
[377301760,1754326241050,-5591.31319997,0.00046648,2]
[377301761,1754326241061,-1420.05,0.000467,14]
[377301762,1754326241071,-5798.19178837,0.00046703,2]
[377301763,1754326241080,-151.0,0.00046722,2]
[377301764,1754326241089,-6012.72488454,0.00046758,2]
[377301765,1754326241100,-1313.72112197,0.000468,120]
[377301766,1754326241111,-363.86271134,0.000468,120]
[377301767,1754326241122,-6235.19570527,0.00046813,2]
[377301768,1754326241131,-6465.89794637,0.00046868,2]
[377301769,1754326241142,-210.0,0.00046872,120]
[377301770,1754326241152,-16548.4305564,0.00046913,3]
[377301771,1754326241162,-6705.13617038,0.00046923,2]
[377301772,1754326241173,-5202.98840384,0.00046978,2]
[377301773,1754326241185,-800.0,0.00047,120]
[377301774,1754326241195,-800.0,0.00047,120]
[377301775,1754326241206,-1000.0,0.00047,120]
[377301776,1754326241216,-780.59,0.00047,120]
[377301777,1754326241226,-780.59,0.00047,120]
[377301778,1754326241237,-662.51,0.00047,120]
[377301779,1754326241247,-662.51,0.00047,120]
[377301780,1754326241256,-427.17045832,0.00047016,15]
[377301781,1754326241266,-5800.0,0.00047114,14]
[377301782,1754326241276,-200.0,0.00047192,3]
[377301783,1754326241285,-154.36,0.00047323,2]
[377301784,1754326241295,-415.58194351,0.00047389,120]
[377301785,1754326241304,-199.0,0.00047397,30]
[377301786,1754326241314,-151.0,0.000474,120]
[377301787,1754326241323,-300.0,0.00047459,120]
[377301788,1754326241333,-157.0,0.00047513,7]
[377301789,1754326241343,-16548.4305564,0.0004755,3]
[377301790,1754326241353,-152.73,0.00047559,2]
[377301791,1754326241363,-747.8,0.0004756,120]
[377301792,1754326241372,-150.0,0.00047596,120]
[377301793,1754326241381,-152.73,0.00047607,2]
[377301794,1754326241391,-152.73,0.00047654,2]
[377301795,1754326241400,-19186.21083129,0.00047674,15]
[377301796,1754326241412,-1420.05,0.000477,14]
[377301797,1754326241422,-152.73,0.00047702,2]
[377301798,1754326241432,-384.67,0.00047739,120]
[377301799,1754326241443,-239.13,0.00047739,2]
[377301800,1754326241453,-152.73,0.00047749,2]
[377301801,1754326241465,-152.73,0.00047797,2]
[377301802,1754326241477,-151.0,0.000478,120]
[377301803,1754326241486,-152.73,0.00047845,2]
[377301804,1754326241495,-1000.0,0.00047873,2]
[377301805,1754326241506,-152.73,0.00047892,2]
[377301806,1754326241516,-152.73,0.0004794,2]
[377301807,1754326241527,-431.42848765,0.00047962,2]
[377301808,1754326241537,-287.61899177,0.00047962,2]
[377301809,1754326241547,-16548.4305564,0.00047979,4]
[377301810,1754326241556,-152.73,0.00047987,2]
[377301811,1754326241566,-1000.0,0.00047989,120]
[377301812,1754326241576,-1000.0,0.00047989,120]
[377301813,1754326241586,-1000.0,0.00047989,120]
[377301814,1754326241595,-1000.0,0.00047989,120]
[377301815,1754326241605,-1000.0,0.00047989,120]
[377301816,1754326241615,-1000.0,0.00047989,120]
[377301817,1754326241624,-1000.0,0.00047989,120]
[377301818,1754326241634,-1000.0,0.00047989,120]
[377301819,1754326241643,-1080.76960432,0.00047989,120]
[377301820,1754326241652,-800.0,0.0004799,120]
[377301821,1754326241661,-1000.0,0.00048,120]
[377301822,1754326241671,-349.11,0.00048,2]
[377301823,1754326241680,-500.0,0.00048,120]
[377301824,1754326241689,-21122.23738406,0.00048,120]
[377301825,1754326241698,-780.59,0.00048,120]
[377301826,1754326241708,-780.59,0.00048,120]
[377301827,1754326241717,-662.51,0.00048,120]
[377301828,1754326241726,-662.51,0.00048,120]
[377301829,1754326241735,-662.51,0.00048,120]
[377301830,1754326241744,-2150.9045,0.00048,120]
[377301831,1754326241753,-152.73,0.00048035,2]
[377301832,1754326241763,-415.58194351,0.00048176,120]
[377301833,1754326241771,-199.0,0.00048219,31]
[377301834,1754326241781,-672.41,0.00048239,120]
[377301835,1754326241791,-511.0,0.00048314,10]
[377301836,1754326241800,-299.99,0.00048348,120]
[377301837,1754326241809,-999.99,0.00048348,10]
[377301838,1754326241819,-150.99,0.00048348,2]
[377301839,1754326241829,-6000.4,0.00048348,2]
[377301840,1754326241839,-400.0,0.00048373,10]
[377301841,1754326241849,-88888.0,0.0004838,120]
[377301842,1754326241858,-500.0,0.000484,10]
[377301843,1754326241868,-201.0697475,0.00048457,28]
[377301844,1754326241879,-1066.46050267,0.00048462,2]
[377301845,1754326241892,-782.15,0.0004848,120]
[377301846,1754326241902,-4010.91,0.0004848,120]
[377301847,1754326241911,-600.0,0.00048499,18]
[377301848,1754326241920,-600.0,0.00048499,18]
[377301849,1754326241929,-600.0,0.00048499,18]
[377301850,1754326241939,-600.0,0.00048499,18]
[377301851,1754326241948,-600.0,0.00048499,18]
[377301852,1754326241957,-600.0,0.00048499,18]
[377301853,1754326241966,-600.0,0.00048499,18]
[377301854,1754326241975,-600.0,0.00048499,18]
[377301855,1754326241986,-600.0,0.00048499,18]
[377301856,1754326241996,-600.0,0.00048499,18]
[377301857,1754326242005,-600.0,0.00048499,38]
[377301858,1754326242014,-167.81,0.00048544,2]
[377301859,1754326242024,-200.0,0.00048573,120]
[377301860,1754326242033,-151.0,0.000486,120]
[377301861,1754326242042,-4541.17,0.00048733,120]
[377301862,1754326242051,-1420.05,0.000488,14]
[377301863,1754326242060,-511.0,0.00048845,10]
[377301864,1754326242070,-415.58194351,0.00048963,120]
[377301865,1754326242079,-1000.0,0.00049,120]
[377301866,1754326242088,-780.59,0.00049,120]
[377301867,1754326242097,-780.59,0.00049,120]
[377301868,1754326242109,-662.51,0.00049,120]
[377301869,1754326242118,-499.84551719,0.00049003,59]
[377301870,1754326242128,-747.8,0.00049007,120]
[377301871,1754326242137,-199.0,0.00049041,32]
[377301872,1754326242146,-427.17045832,0.00049044,15]
[377301873,1754326242156,-384.67,0.00049109,120]
[377301874,1754326242165,-239.13,0.00049109,2]
[377301875,1754326242175,-3360.0,0.0004911,2]
[377301876,1754326242187,-1307.0,0.0004911,2]
[377301877,1754326242197,-955.0,0.0004911,2]
[377301878,1754326242207,-809.964,0.0004911,2]
[377301879,1754326242217,-960.0,0.0004911,2]
[377301880,1754326242227,-597.0,0.0004911,2]
[377301881,1754326242237,-1292.0,0.0004911,2]
[377301882,1754326242246,-2023.0,0.0004911,2]
[377301883,1754326242256,-564.0,0.0004911,2]
[377301884,1754326242265,-1181.195,0.0004911,2]
[377301885,1754326242276,-3071.331,0.0004911,2]
[377301886,1754326242286,-1774.0,0.0004911,2]
[377301887,1754326242296,-4137.0,0.0004911,2]
[377301888,1754326242305,-6173.422,0.0004911,2]
[377301889,1754326242315,-865.0,0.0004911,2]
[377301890,1754326242325,-679.13457396,0.00049167,120]
[377301891,1754326242334,-700.0,0.00049168,120]
[377301892,1754326242344,-700.0,0.00049169,120]
[377301893,1754326242354,-700.0,0.0004917,120]
[377301894,1754326242363,-248.22,0.00049171,120]
[377301895,1754326242372,-700.0,0.00049171,120]
[377301896,1754326242382,-300.0,0.00049294,30]
[377301897,1754326242391,-666.0,0.00049294,30]
[377301898,1754326242401,-1537.0,0.000493,2]
[377301899,1754326242410,-151.0,0.000493,120]
[377301900,1754326242419,-300.0,0.00049304,30]
[377301901,1754326242429,-305.39721356,0.00049314,120]
[377301903,1754326242438,-404.30966179,0.00049314,120]
[377301904,1754326242447,-1863.37,0.00049314,120]
[377301905,1754326242457,-300.0,0.00049315,30]
[377301906,1754326242467,-310.0,0.00049315,30]
[377301907,1754326242476,-298.26089446,0.00049331,2]
[377301908,1754326242486,-224.5,0.0004937,120]
[377301909,1754326242496,-511.0,0.00049376,10]
[377301910,1754326242506,-150.5,0.0004938,120]
[377301911,1754326242515,-150.5,0.0004939,120]
[377301912,1754326242525,-19186.21083129,0.00049429,15]
[377301913,1754326242535,-150.0,0.0004947,12]
[377301916,1754326242545,-200.0,0.00049505,120]
[377301918,1754326242555,-150.0,0.0004959,120]
[377301920,1754326242564,-1000.0,0.000496,120]
[377301921,1754326242573,-1000.0,0.000496,120]
[377301922,1754326242583,-6210.53442635,0.000497,50]
[377301923,1754326242592,-1282.76,0.00049722,120]
[377301925,1754326242602,-165.28,0.00049743,2]
[377301927,1754326242611,-415.58194351,0.0004975,120]
[377301928,1754326242620,-500.0,0.0004977,120]
[377301929,1754326242629,-151.0,0.000498,120]
[377301930,1754326242639,-706.33,0.00049888,120]
[377301931,1754326242648,-39055.68077888,0.000499,2]
[377301932,1754326242658,-3800.0,0.000499,18]
[377301933,1754326242669,-511.0,0.00049907,10]
[377301934,1754326242681,-317.24,0.00049962,120]
[377301935,1754326242691,-672.41,0.00049969,120]
[377301936,1754326242701,-1150.03,0.0004998,7]
[377301937,1754326242710,-3499.98,0.0004998,7]
[377301938,1754326242720,-500.0,0.00049999,120]
[377301939,1754326242731,-540.0679607,0.00049999,120]
[377301940,1754326242740,-500.0,0.00049999,120]
[377301941,1754326242750,-500.0,0.00049999,120]
[377301942,1754326242759,-221.78872991,0.00049999,120]
[377301943,1754326242768,-288.18569642,0.00049999,120]
[377301944,1754326242777,-592.2995104,0.00049999,120]
[377301945,1754326242787,-1000.0,0.0005,120]
[377301946,1754326242797,-1000.0,0.0005,120]
[377301947,1754326242808,-163.14316317,0.0005,90]
[377301948,1754326242817,-153.87,0.0005,120]
[377301949,1754326242827,-962.71,0.0005,120]
[377301950,1754326242837,-962.71,0.0005,120]
[377301951,1754326242846,-962.71,0.0005,120]
[377301952,1754326242856,-962.71,0.0005,120]
[377301953,1754326242865,-962.71,0.0005,120]
[377301954,1754326242874,-962.71,0.0005,120]
[377301955,1754326242884,-962.71,0.0005,120]
[377301956,1754326242893,-962.71,0.0005,120]
[377301957,1754326242903,-962.71,0.0005,120]
[377301958,1754326242913,-962.71,0.0005,120]
[377301959,1754326242922,-962.71,0.0005,120]
[377301960,1754326242931,-962.71,0.0005,120]
[377301961,1754326242941,-962.71,0.0005,120]
[377301963,1754326242950,-962.71,0.0005,120]
[377301964,1754326242960,-962.71,0.0005,120]
[377301965,1754326242970,-962.71,0.0005,120]
[377301966,1754326242979,-962.71,0.0005,120]
[377301967,1754326242989,-962.71,0.0005,120]
[377301968,1754326242998,-962.71,0.0005,120]
[377301969,1754326243008,-962.71,0.0005,120]
[377301970,1754326243018,-962.71,0.0005,120]
[377301971,1754326243028,-962.71,0.0005,120]
[377301972,1754326243038,-962.71,0.0005,120]
[377301973,1754326243048,-962.84498669,0.0005,120]
[377301974,1754326243058,-205.68,0.000501,14]
[377301975,1754326243068,-186.16,0.00050145,120]
[377301976,1754326243078,-153.0,0.00050151,30]
[377301978,1754326243088,-1213.0,0.00050151,30]
[377301980,1754326243097,-1213.0,0.00050151,30]
[377301981,1754326243111,-1213.0,0.00050151,30]
[377301982,1754326243121,-1213.0,0.00050151,30]
[377301983,1754326243130,-1213.0,0.00050151,30]
[377301984,1754326243140,-1213.0,0.00050151,30]
[377301985,1754326243151,-1213.0,0.00050151,30]
[377301986,1754326243161,-1213.0,0.00050151,30]
[377301987,1754326243171,-155.0,0.00050151,30]
[377301988,1754326243182,-1213.0,0.00050151,30]
[377301989,1754326243192,-155.0,0.00050151,30]
[377301990,1754326243201,-164.11802654,0.00050151,30]
[377301991,1754326243211,-1213.0,0.00050151,30]
[377301992,1754326243221,-205.88065986,0.00050151,30]
[377301993,1754326243231,-1213.0,0.00050151,30]
[377301994,1754326243241,-1213.0,0.00050151,30]
[377301995,1754326243251,-1213.0,0.00050151,30]
[377301996,1754326243261,-1213.0,0.00050151,30]
[377301997,1754326243272,-1213.0,0.00050151,30]
[377301998,1754326243282,-1213.0,0.00050151,30]
[377301999,1754326243292,-1213.0,0.00050151,30]
[377302000,1754326243301,-1213.0,0.00050151,30]
[377302001,1754326243311,-1213.0,0.00050151,30]
[377302002,1754326243322,-1213.0,0.00050151,30]
[377302003,1754326243332,-1213.0,0.00050151,30]
[377302004,1754326243342,-1213.0,0.00050151,30]
[377302005,1754326243353,-1194.93519734,0.00050151,30]
[377302006,1754326243363,-706.33,0.00050162,120]
[377302007,1754326243373,-150.0,0.00050191,120]
[377302008,1754326243383,-300.0,0.000502,30]
[377302009,1754326243393,-152.0,0.0005038,4]
[377302010,1754326243403,-1066.46050267,0.00050431,2]
[377302011,1754326243413,-706.33,0.00050436,120]
[377302012,1754326243423,-200.0,0.00050437,120]
[377302013,1754326243434,-511.0,0.00050438,20]
[377302014,1754326243443,-747.8,0.00050454,120]
[377302015,1754326243453,-384.67,0.00050479,120]
[377302016,1754326243463,-239.13,0.00050479,2]
[377302017,1754326243473,-415.58194351,0.00050537,120]
[377302018,1754326243484,-257.6046725,0.00050564,10]
[377302019,1754326243495,-1863.37,0.00050684,120]
[377302020,1754326243505,-151.0,0.000507,120]
[377302021,1754326243515,-158.53715839,0.000507,2]
[377302022,1754326243525,-706.33,0.0005071,120]
[377302023,1754326243535,-1000.0,0.000509,120]
[377302024,1754326243545,-511.0,0.0005097,20]
[377302025,1754326243556,-706.33,0.00050984,120]
[377302026,1754326243567,-1000.0,0.00051,120]
[377302027,1754326243577,-151.0,0.00051,120]
[377302028,1754326243587,-427.17045832,0.00051073,15]
[377302029,1754326243597,-201.0697475,0.00051084,28]
[377302030,1754326243607,-4000.0,0.00051178,8]
[377302031,1754326243618,-19186.21083129,0.00051184,15]
[377302032,1754326243628,-239.0,0.000512,30]
[377302033,1754326243638,-379.0,0.000512,30]
[377302034,1754326243649,-775.0,0.000512,30]
[377302035,1754326243659,-706.33,0.00051258,120]
[377302036,1754326243670,-415.58194351,0.00051324,120]
[377302037,1754326243680,-150.0,0.00051346,120]
[377302038,1754326243690,-500.0,0.0005137,120]
[377302039,1754326243700,-306.909875,0.0005137,120]
[377302040,1754326243711,-200.0,0.0005137,120]
[377302041,1754326243722,-1500.0,0.000515,30]
[377302042,1754326243735,-150.0,0.000515,30]
[377302043,1754326243746,-150.0,0.000515,10]
[377302044,1754326243756,-511.0,0.00051501,20]
[377302045,1754326243766,-706.33,0.00051532,120]
[377302046,1754326243776,-672.41,0.000517,120]
[377302047,1754326243786,-706.33,0.00051806,120]
[377302048,1754326243796,-991.5,0.00051839,120]
[377302049,1754326243806,-384.67,0.00051849,120]
[377302050,1754326243816,-239.13,0.00051849,2]
[377302051,1754326243826,-747.8,0.000519,120]
[377302052,1754326243835,-200.0,0.000519,39]
[377302053,1754326243845,-1000.0,0.00052,120]
[377302054,1754326243855,-769.79280595,0.00052,120]
[377302055,1754326243864,-205.68,0.00052,14]
[377302056,1754326243874,-511.0,0.00052032,20]
[377302057,1754326243884,-1863.37,0.00052054,120]
[377302058,1754326243893,-706.33,0.0005208,120]
[377302059,1754326243904,-186.17,0.00052092,120]
[377302060,1754326243913,-1537.52577121,0.000521,2]
[377302061,1754326243923,-151.0,0.000521,120]
[377302062,1754326243932,-1251.0,0.0005211,120]
[377302063,1754326243942,-955.0,0.0005211,120]
[377302064,1754326243953,-809.0,0.0005211,2]
[377302065,1754326243963,-597.0,0.0005211,120]
[377302066,1754326243973,-1292.0,0.0005211,120]
[377302067,1754326243984,-2023.0,0.0005211,120]
[377302068,1754326243995,-1169.0,0.0005211,120]
[377302069,1754326244005,-1651.0,0.0005211,120]
[377302070,1754326244015,-4137.0,0.0005211,120]
[377302071,1754326244025,-6070.0,0.0005211,120]
[377302072,1754326244035,-865.0,0.0005211,120]
[377302073,1754326244045,-415.58194351,0.00052111,120]
[377302074,1754326244055,-2730.91,0.00052121,2]
[377302075,1754326244066,-1000.0,0.000522,120]
[377302076,1754326244076,-151.0,0.000522,120]
[377302077,1754326244086,-1047.34,0.000522,7]
[377302078,1754326244096,-1000.0,0.00052225,120]
[377302079,1754326244108,-162.65432098,0.00052337,13]
[377302080,1754326244119,-175.30864196,0.00052337,13]
[377302081,1754326244128,-706.33,0.00052354,120]
[377302082,1754326244139,-1066.46050267,0.000524,2]
[377302083,1754326244151,-1540.0,0.00052457,30]
[377302084,1754326244161,-200.0,0.00052482,120]
[377302085,1754326244171,-167.81,0.00052551,2]
[377302086,1754326244184,-511.0,0.00052563,23]
[377302087,1754326244194,-706.33,0.00052628,120]
[377302088,1754326244204,-415.58194351,0.00052898,120]
[377302089,1754326244214,-706.33,0.00052902,120]
[377302090,1754326244224,-19186.21083129,0.00052939,15]
[377302091,1754326244237,-1540.0,0.00052998,30]
[377302092,1754326244247,-1000.0,0.00053,120]
[377302093,1754326244257,-1420.05,0.00053,60]
[377302094,1754326244267,-204.0,0.00053,120]
[377302095,1754326244277,-511.0,0.00053094,25]
[377302096,1754326244287,-427.17045832,0.00053102,15]
[377302097,1754326244298,-1000.0,0.00053133,30]
[377302098,1754326244309,-706.33,0.00053176,120]
[377302099,1754326244320,-384.67,0.00053218,120]
[377302100,1754326244330,-239.13,0.00053218,2]
[377302101,1754326244340,-500.0,0.00053278,120]
[377302102,1754326244351,-747.8,0.00053347,120]
[377302103,1754326244361,-151.0,0.000534,120]
[377302104,1754326244372,-1863.37,0.00053424,120]
[377302105,1754326244383,-672.41,0.0005343,120]
[377302106,1754326244393,-706.33,0.0005345,120]
[377302107,1754326244403,-389.47037736,0.00053485,30]
[377302108,1754326244413,-151.0,0.000535,120]
[377302109,1754326244424,-4000.0,0.0005353,8]
[377302110,1754326244435,-1540.0,0.00053539,30]
[377302111,1754326244445,-1000.0,0.00053551,30]
[377302112,1754326244457,-200.0,0.00053594,120]
[377302113,1754326244468,-511.0,0.00053626,28]
[377302114,1754326244481,-201.0697475,0.00053711,28]
[377302115,1754326244491,-706.33,0.00053724,120]
[377302116,1754326244502,-1000.0,0.00053766,30]
[377302117,1754326244512,-150.0,0.00053769,7]
[377302118,1754326244521,-500.0,0.00053777,30]
[377302119,1754326244532,-500.0,0.00053794,120]
[377302120,1754326244543,-500.0,0.00053794,120]
[377302121,1754326244555,-500.0,0.00053794,120]
[377302122,1754326244566,-500.0,0.00053794,120]
[377302123,1754326244576,-500.0,0.00053794,120]
[377302124,1754326244586,-500.0,0.00053794,120]
[377302125,1754326244596,-500.0,0.00053794,120]
[377302126,1754326244607,-500.0,0.00053794,120]
[377302127,1754326244617,-475.36,0.00053794,120]
[377302128,1754326244627,-2110.0,0.00053794,30]
[377302129,1754326244637,-150.0,0.00053862,7]
[377302130,1754326244646,-1000.0,0.00053867,30]
[377302131,1754326244657,-400.0,0.0005387,7]
[377302132,1754326244667,-1300.0,0.0005387,7]
[377302133,1754326244676,-200.0,0.000539,42]
[377302134,1754326244686,-150.0,0.00053914,7]
[377302135,1754326244696,-1000.0,0.00053938,30]
[377302136,1754326244706,-150.0,0.0005395,30]
[377302137,1754326244716,-371.84911771,0.00053958,54]
[377302138,1754326244727,-400.0,0.0005397,7]
[377302139,1754326244738,-700.0,0.0005397,7]
[377302140,1754326244748,-600.0,0.00053978,40]
[377302141,1754326244758,-706.33,0.00053998,120]
[377302142,1754326244768,-1000.0,0.00054,120]
[377302143,1754326244779,-1000.0,0.00054,120]
[377302144,1754326244789,-179.16,0.00054,30]
[377302145,1754326244800,-500.0,0.00054056,60]
[377302146,1754326244810,-1540.0,0.0005408,30]
[377302147,1754326244820,-666.22743093,0.0005408,30]
[377302148,1754326244831,-500.0,0.00054139,60]
[377302149,1754326244841,-511.0,0.00054157,31]
[377302150,1754326244852,-308.647,0.0005417,101]
[377302151,1754326244862,-839.60369544,0.00054189,30]
[377302152,1754326244872,-150.0,0.00054207,7]
[377302153,1754326244882,-150.0,0.00054209,7]
[377302154,1754326244892,-45769.5282566,0.00054258,120]
[377302155,1754326244902,-150.0,0.00054262,7]
[377302156,1754326244912,-150.0,0.00054266,7]
[377302157,1754326244922,-706.33,0.00054272,120]
[377302158,1754326244932,-2110.0,0.00054294,30]
[377302159,1754326244942,-500.0,0.00054342,60]
[377302160,1754326244953,-1066.46050267,0.00054369,2]
[377302161,1754326244964,-150.0,0.00054408,7]
[377302162,1754326244974,-700.0,0.00054417,60]
[377302163,1754326244986,-150.0,0.0005445,7]
[377302164,1754326244997,-150.0,0.00054469,7]
[377302165,1754326245007,-150.0,0.00054472,7]
[377302166,1754326245017,-150.0,0.00054491,7]
[377302167,1754326245027,-317.24,0.00054504,120]
[377302168,1754326245038,-1000.0,0.0005453,30]
[377302169,1754326245048,-150.0,0.00054544,30]
[377302170,1754326245058,-706.33,0.00054546,120]
[377302171,1754326245068,-150.0,0.00054576,7]
[377302172,1754326245078,-500.0,0.00054586,120]
[377302173,1754326245089,-500.0,0.00054586,120]
[377302174,1754326245099,-500.0,0.00054586,120]
[377302175,1754326245112,-500.0,0.00054586,120]
[377302176,1754326245122,-500.0,0.00054586,120]
[377302177,1754326245132,-500.0,0.00054586,120]
[377302178,1754326245142,-500.0,0.00054586,120]
[377302180,1754326245153,-500.0,0.00054586,120]
[377302181,1754326245494,-500.0,0.00054586,120]
[377302182,1754326245504,-500.0,0.00054586,120]
[377302183,1754326245514,-500.0,0.00054586,120]
[377302184,1754326245523,-500.0,0.00054586,120]
[377302185,1754326245533,-500.0,0.00054586,120]
[377302186,1754326245543,-500.0,0.00054586,120]
[377302187,1754326245552,-500.0,0.00054586,120]
[377302188,1754326245562,-500.0,0.00054586,120]
[377302189,1754326245572,-500.0,0.00054586,120]
[377302190,1754326245582,-500.0,0.00054586,120]
[377302191,1754326245593,-500.0,0.00054586,120]
[377302192,1754326245602,-500.0,0.00054586,120]
[377302193,1754326245612,-500.0,0.00054586,120]
[377302194,1754326245622,-500.0,0.00054586,120]
[377302195,1754326245632,-500.0,0.00054586,120]
[377302196,1754326245643,-500.0,0.00054586,120]
[377302197,1754326245655,-500.0,0.00054586,120]
[377302198,1754326245665,-500.0,0.00054586,120]
[377302199,1754326245675,-500.0,0.00054586,120]
[377302200,1754326245686,-384.67,0.00054588,120]
[377302201,1754326245695,-239.13,0.00054588,2]